bitfinex-derivatives/quotes_SOLF0:USTF0_20250301
["timestamp","ask_amount","ask_price","bid_price","bid_amount"]
[1740796393339,3.38354218,149.46,149.41,20.94573906]
[1740796393540,5.3567,149.4,149.39,183.23344483]
[1740796393835,5.3567,149.4,149.38,150.33075416]
[1740796394029,3.34,149.4,149.38,114.5161081]
[1740796394234,3.34,149.4,149.38,74.4038081]
[1740796394433,3.34,149.4,149.38,65.8100081]
[1740796394635,5.3571,149.39,149.38,57.5306081]
[1740796394836,5.3571,149.39,149.38,49.4598081]
[1740796395139,20.14,149.63,149.38,16.33045394]
[1740796395437,16.48,149.62,149.39,7.1912]
[1740796396138,16.48,149.62,149.4,3.5294]
[1740796396339,0.04521069,149.52,149.49,0.04307813]
[1740796396728,0.04521069,149.52,149.43,16.82]
[1740796396729,36.58,149.62,149.43,16.82]
[1740796396937,36.58,149.62,149.43,20.11166292]
[1740796397138,0.04801658,149.52,149.49,0.04495228]
[1740796397546,16.48,149.62,149.43,16.82]
[1740796397843,0.04285599,149.52,149.49,0.04623899]
[1740796398037,231.16,149.64,149.49,0.04623899]
[1740796398038,214.3,149.64,149.5,16.84]
[1740796398239,214.3,149.64,149.5,20.3694]
[1740796398637,16.86,149.7,149.51,2.5159658]
[1740796399044,0.9932,149.72,149.51,2.5159658]
[1740796399342,0.04849508,149.62,149.59,0.04427113]
[1740796399547,354.35569005,149.84,149.6,232.41689839]
[1740796399730,354.35569005,149.84,149.61,3.6336]
[1740796399935,354.35569005,149.84,149.7,5.3458]
[1740796400135,354.35569005,149.84,149.71,20.4536]
[1740796400440,5.3413,149.84,149.72,16.82]
[1740796400642,16.84,149.86,149.71,3.29166292]
[1740796400942,0.04469947,149.79,149.76,0.0432508]
[1740796401338,16.84,149.85,149.67,16.84]
[1740796401540,0.04914959,149.79,149.76,0.04275808]
[1740796401739,5.3432,149.78,149.76,0.04275808]
[1740796401943,0.9932,149.84,149.67,16.84]
[1740796402142,5.3435,149.77,149.76,0.04386476]
[1740796402336,0.04240466,149.78,149.63,3.6336]
[1740796402541,16.94,149.79,149.63,23.86526292]
[1740796402744,214.06,149.77,149.63,20.5736]
[1740796402944,214.06,149.77,149.63,23.86526292]
[1740796403149,214.06,149.77,149.63,3.29166292]
[1740796403449,0.04874001,149.71,149.69,0.04589761]
[1740796403747,0.04874001,149.71,149.58,17.0]
[1740796403948,17.0,149.73,149.58,17.0]
[1740796404139,17.0,149.73,149.58,20.29166292]
[1740796404943,5.3482,149.64,149.58,20.29166292]
[1740796405148,0.05126797,149.67,149.64,0.04505709]
[1740796405449,217.32,149.67,149.58,17.0]
[1740796405751,213.98,149.67,149.55,7.0171]
[1740796405942,5.3493,149.61,149.55,10.30876292]
[1740796406143,231.04,149.67,149.53,17.06]
[1740796406347,231.04,149.67,149.53,20.35166292]
[1740796406547,5.39246822,149.61,149.59,0.04268529]
[1740796406746,0.04316822,149.61,149.53,20.35166292]
[1740796407050,231.04,149.67,149.5,17.02]
[1740796407443,231.04,149.67,149.5,3.29166292]
[1740796407644,231.04,149.67,149.49,7.193]
[1740796407645,5.3514,149.55,149.49,7.193]
[1740796407846,17.02,149.61,149.49,3.29166292]
[1740796408138,0.05069492,149.53,149.51,0.04743939]
[1740796408345,17.02,149.61,149.51,0.04743939]
[1740796408545,0.04585215,149.53,149.44,3.6797]
[1740796408753,0.04585215,149.53,149.44,6.97136292]
[1740796408952,17.02,149.61,149.47,0.04504278]
[1740796409148,0.04311813,149.5,149.47,0.04504278]
[1740796409356,1.33636242,149.66,149.48,16.96]
[1740796409546,0.04652553,149.5,149.48,16.96]
[1740796409752,16.96,149.65,149.48,20.25166292]
[1740796409951,16.96,149.65,149.48,20.30071699]
[1740796410253,1.33654103,149.64,149.48,20.25166292]
[1740796410453,1.33654103,149.64,149.44,3.6797]
[1740796410763,1.33654103,149.64,149.43,20.6228]
[1740796410959,0.04379592,149.55,149.43,20.6228]
[1740796411157,0.04379592,149.55,149.53,0.05072484]
[1740796411459,0.04271854,149.55,149.53,0.04693336]
[1740796411659,214.0,149.58,149.53,0.04693336]
[1740796412159,5.3507,149.57,149.53,0.04693336]
[1740796412558,5.352,149.54,149.44,5.355]
[1740796412753,214.0,149.58,149.43,23.85446292]
[1740796413457,183.267,149.57,149.43,3.29166292]
[1740796413655,16.9,149.56,149.43,3.29166292]
[1740796413853,0.04545102,149.51,149.49,0.04879607]
[1740796414055,183.267,149.57,149.49,0.04879607]
[1740796414255,0.04679192,149.51,149.49,0.04879607]
[1740796414449,214.0,149.58,149.43,16.88]
[1740796414654,214.0,149.58,149.48,5.3538]
[1740796414854,0.04341287,149.52,149.49,0.05138436]
[1740796415153,5.3517,149.54,149.48,3.29166292]
[1740796415458,0.05102683,149.52,149.49,0.04792832]
[1740796415956,0.05102683,149.52,149.49,3.33959124]
[1740796417251,0.05102683,149.52,149.49,0.04792832]
[1740796417450,5.3529,149.51,149.49,0.04792832]
[1740796417757,0.05102683,149.52,149.49,0.04792832]
[1740796418758,5.40352683,149.52,149.49,3.33959124]
[1740796418956,5.33740767,149.52,149.49,0.04792832]
[1740796419160,214.0,149.58,149.49,0.04792832]
[1740796419352,5.3526,149.52,149.49,0.04792832]
[1740796419657,234.1,149.58,149.44,3.6559]
[1740796419858,214.0,149.58,149.44,3.6559]
[1740796420248,0.0459214,149.52,149.5,0.04337152]
[1740796420460,5.3522,149.53,149.5,0.04337152]
[1740796420853,0.04549549,149.52,149.5,0.04337152]
[1740796421053,5.3528,149.51,149.5,0.04337152]
[1740796421359,0.04862987,149.52,149.5,0.04337152]
[1740796422256,2.987e-05,149.52,149.5,16.76337152]
[1740796422864,1.33654103,149.64,149.5,20.10337152]
[1740796423162,1.33654103,149.64,149.51,6.9656]
[1740796423552,1.33654103,149.64,149.51,10.25723305]
[1740796423958,1.33654103,149.64,149.51,3.29163305]
[1740796424160,0.02522237,149.59,149.56,0.05094393]
[1740796424357,0.02522237,149.59,149.51,29.2491087]
[1740796425265,0.02522237,149.59,149.52,16.66]
[1740796425563,0.02522237,149.59,149.57,5.3506]
[1740796426273,0.02522237,149.59,149.56,5.3509]
[1740796426764,0.02522237,149.59,149.56,3.29163305]
[1740796427667,0.02522237,149.59,149.56,8.64253305]
[1740796427867,0.02522237,149.59,149.56,3.29163305]
[1740796428063,0.02522237,149.59,149.58,5.3503]
[1740796428267,214.06,149.66,149.54,3.75071731]
[1740796428461,0.0846,149.72,149.58,16.58]
[1740796428662,0.7485,149.75,149.58,16.58]
[1740796428966,0.7485,149.75,149.59,1.22812332]
[1740796429568,0.05085455,149.68,149.66,0.04227481]
[1740796429767,6.0928,149.75,149.64,16.56]
[1740796430071,0.0474118,149.68,149.66,0.05019067]
[1740796430274,0.7485,149.75,149.66,0.05019067]
[1740796430463,0.04645676,149.68,149.66,3.29163305]
[1740796430658,0.7485,149.75,149.69,9.15418065]
[1740796430865,0.7485,149.75,149.71,0.04356031]
[1740796431065,0.04864218,149.73,149.71,0.04356031]
[1740796431268,0.04864218,149.73,149.68,27.46254195]
[1740796431668,5.3464,149.69,149.68,27.46254195]
[1740796431974,7.71636846,149.69,149.68,0.80034195]
[1740796432173,5.3467,149.68,149.67,64.05538715]
[1740796432373,5.3467,149.68,149.67,29.24678092]
[1740796432574,8.6867,149.68,149.67,29.24678092]
[1740796432966,5.3464,149.69,149.67,29.24678092]
[1740796433167,0.04479988,149.7,149.67,29.24678092]
[1740796433767,0.04479988,149.7,149.67,0.04249377]
[1740796435468,5.3467,149.68,149.67,0.04249377]
[1740796435664,5.3467,149.68,149.67,9.377e-05]
[1740796435871,8.6867,149.68,149.67,9.377e-05]
[1740796436272,25.0867,149.68,149.67,9.377e-05]
[1740796438573,45.1867,149.68,149.67,9.377e-05]
[1740796438879,39.84,149.68,149.56,3.6139]
[1740796439077,36.5,149.68,149.56,3.6139]
[1740796439880,5.3489,149.62,149.61,0.04948604]
[1740796441378,24.9489,149.62,149.61,8.604e-05]
[1740796441878,45.0489,149.62,149.61,8.604e-05]
[1740796442381,21.6089,149.62,149.61,8.604e-05]
[1740796442883,5.3489,149.62,149.61,8.604e-05]
[1740796443676,5.3496,149.6,149.49,19.52085001]
[1740796444281,16.26,149.64,149.49,22.81257683]
[1740796444682,0.04869097,149.58,149.55,0.05083387]
[1740796444984,16.26,149.64,149.49,22.81257683]
[1740796445179,0.04417518,149.58,149.55,0.04506139]
[1740796445375,16.26,149.64,149.49,22.81257683]
[1740796445578,0.04913629,149.58,149.55,0.04928732]
[1740796445779,16.26,149.64,149.49,22.81257683]
[1740796445978,0.04402682,149.58,149.55,5.39347053]
[1740796446180,0.04402682,149.58,149.55,0.04237053]
[1740796446381,0.04402682,149.58,149.55,3.33409735]
[1740796446781,0.04402682,149.58,149.55,0.04237053]
[1740796447479,213.94,149.65,149.55,0.04237053]
[1740796447675,213.94,149.65,149.55,16.2]
[1740796447887,5.3483,149.64,149.56,8.833]
[1740796448089,5.3483,149.64,149.56,3.4823]
[1740796448288,213.94,149.65,149.56,3.4823]
[1740796448481,0.04823995,149.61,149.59,0.04316391]
[1740796448786,213.94,149.65,149.59,0.04316391]
[1740796448981,213.94,149.65,149.59,5.39286391]
[1740796449182,213.94,149.65,149.6,3.6884]
[1740796449598,5.3492,149.61,149.6,3.6884]
[1740796452490,36.3100079,149.64,149.47,16.14]
[1740796452684,36.5523,149.64,149.48,3.4382]
[1740796453079,1.33663035,149.63,149.48,6.72992682]
[1740796453488,5.3535,149.49,149.48,6.72992682]
[1740796453793,230.06,149.54,149.46,3.7367]
[1740796453987,0.04774564,149.51,149.47,0.05148582]
[1740796454388,0.04774564,149.51,149.47,3.34321264]
[1740796454593,5.354,149.48,149.47,0.05148582]
[1740796455294,5.3549,149.45,149.44,73.89196191]
[1740796455486,5.3549,149.45,149.44,39.41016191]
[1740796455687,8.6949,149.45,149.44,3.42866191]
[1740796455886,5.3553,149.44,149.43,105.10412971]
[1740796456091,219.3553,149.44,149.43,94.77122971]
[1740796456291,222.6953,149.44,149.43,68.55622971]
[1740796456492,222.6953,149.44,149.43,51.67122971]
[1740796457097,214.0,149.44,149.43,51.67122971]
[1740796457597,214.0,149.44,149.42,0.04774179]
[1740796458297,0.043183,149.45,149.42,0.04774179]
[1740796458593,214.08,149.57,149.42,3.38774179]
[1740796458797,214.08,149.57,149.43,3.5709]
[1740796459000,214.08,149.57,149.45,5.3549]
[1740796459186,214.08,149.57,149.43,6.86262682]
[1740796459492,239.5308,149.57,149.43,12.21822682]
[1740796459697,239.5308,149.57,149.43,6.86262682]
[1740796459999,0.04694048,149.51,149.49,0.04420072]
[1740796460189,16.12,149.52,149.49,0.00620072]
[1740796460500,41.5725,149.52,149.49,0.00620072]
[1740796460698,39.56,149.52,149.49,0.00620072]
[1740796460899,16.12,149.52,149.49,0.00620072]
[1740796461102,36.22,149.52,149.49,0.00620072]
[1740796461492,16.17151973,149.52,149.49,0.00620072]
[1740796461890,0.05151973,149.52,149.49,0.00620072]
[1740796462291,214.08,149.57,149.49,0.00620072]
[1740796462798,214.08,149.57,149.52,5.3521]
[1740796463197,214.08,149.57,149.52,3.29172682]
[1740796463591,0.04561444,149.56,149.53,0.0466118]
[1740796463801,16.24561444,149.56,149.53,0.0466118]
[1740796464294,24.93671444,149.56,149.45,5.3549]
[1740796464601,16.2,149.56,149.42,3.5743]
[1740796464800,5.352,149.54,149.43,5.3553]
[1740796465101,16.2,149.56,149.42,6.86602682]
[1740796465299,5.3514,149.55,149.42,3.5743]
[1740796465499,16.2,149.56,149.42,3.5743]
[1740796465500,0.04834966,149.5,149.48,0.04788124]
[1740796465695,16.2,149.5,149.48,0.04788124]
[1740796465895,16.24349519,149.5,149.48,0.04788124]
[1740796466811,0.04349519,149.5,149.48,0.04788124]
[1740796467712,0.04349519,149.5,149.48,3.33960806]
[1740796468113,0.04349519,149.5,149.48,0.04788124]
[1740796469002,0.04349519,149.5,149.48,3.33960806]
[1740796469405,0.04349519,149.5,149.48,0.04788124]
[1740796470905,214.08,149.57,149.48,0.04788124]
[1740796471108,214.08,149.57,149.53,5.3518]
[1740796471310,214.08,149.57,149.46,16.1]
[1740796471511,214.08,149.57,149.54,5.3516]
[1740796471812,214.08,149.57,149.46,16.1]
[1740796472016,214.08,149.57,149.56,5.351]
[1740796472215,214.08,149.57,149.5,0.0475548]
[1740796472417,214.08,149.57,149.46,16.1]
[1740796472622,214.08,149.57,149.52,0.04631398]
[1740796473015,202.6593,149.57,149.52,0.04631398]
[1740796473318,1.33663035,149.63,149.52,16.08631398]
[1740796473521,1.33663035,149.63,149.53,3.6839]
[1740796473721,214.08,149.65,149.62,5.3489]
[1740796474322,214.12493557,149.65,149.62,0.0477134]
[1740796476326,15.96,149.64,149.53,3.6839]
[1740796476624,36.06,149.64,149.53,6.97557811]
[1740796477126,15.96,149.64,149.53,6.97557811]
[1740796477328,15.96,149.64,149.53,3.6839]
[1740796477625,0.05054199,149.6,149.57,0.04437591]
[1740796478014,5.40044199,149.6,149.57,0.04437591]
[1740796478218,20.15054199,149.6,149.57,0.04437591]
[1740796478419,0.05054199,149.6,149.46,7.0185]
[1740796478725,3.7988,149.61,149.46,7.0185]
[1740796479219,3.7988,149.61,149.55,5.3511]
[1740796479420,3.7988,149.61,149.46,7.0185]
[1740796479615,0.04750597,149.59,149.57,0.04652656]
[1740796479820,15.96,149.64,149.46,7.0185]
[1740796480120,5.3509,149.57,149.5,5.3529]
[1740796480324,15.88,149.58,149.54,0.04699182]
[1740796480526,0.04272325,149.55,149.54,0.04699182]
[1740796480821,0.04272325,149.55,149.46,7.0185]
[1740796481023,15.88,149.58,149.53,0.04626696]
[1740796481225,0.048988,149.52,149.46,10.31017811]
[1740796481426,0.048988,149.52,149.51,5.3528]
[1740796482222,15.88,149.58,149.54,5.3516]
[1740796482425,15.88,149.58,149.46,7.0185]
[1740796482730,21.1891,149.62,149.54,5.3515]
[1740796483225,15.84,149.62,149.46,7.0185]
[1740796483721,0.04725025,149.55,149.53,0.04567416]
[1740796483921,0.04725025,149.55,149.46,7.0185]
[1740796483922,5.3497,149.6,149.46,7.0185]
[1740796484123,0.04400354,149.55,149.53,0.04868129]
[1740796484428,15.84,149.62,149.46,10.31017811]
[1740796484725,0.04759863,149.55,149.53,0.05038849]
[1740796484927,35.94,149.62,149.46,10.31017811]
[1740796485120,0.04807938,149.55,149.46,10.31017811]
[1740796485327,0.04807938,149.55,149.49,0.05100075]
[1740796485530,0.04693324,149.52,149.49,0.05100075]
[1740796485827,35.94,149.62,149.49,3.29167811]
[1740796486022,0.04869779,149.52,149.49,3.33532347]
[1740796486228,5.3515,149.55,149.49,8.64507811]
[1740796486427,0.04793891,149.52,149.49,3.33586528]
[1740796486924,0.04661073,149.52,149.49,0.04411113]
[1740796487416,0.04661073,149.52,149.51,5.3528]
[1740796487818,0.04661073,149.52,149.51,3.29167811]
[1740796488928,0.04661073,149.52,149.49,0.04411113]
[1740796489131,0.04661073,149.52,149.49,3.33578924]
[1740796489328,5.3531,149.51,149.49,0.04411113]
[1740796489822,0.04661073,149.52,149.49,0.04411113]
[1740796490225,0.04661073,149.52,149.5,5.3532]
[1740796490617,0.04661073,149.52,149.5,3.29167811]
[1740796491024,0.04661073,149.52,149.49,0.04411113]
[1740796491025,5.39901073,149.52,149.49,0.04411113]
[1740796491232,0.04661073,149.52,149.49,0.04411113]
[1740796491730,0.04661073,149.52,149.44,5.3552]
[1740796491932,23.8141,149.53,149.39,6.97457811]
[1740796492126,5.3539,149.48,149.43,5.3554]
[1740796492628,5.3539,149.48,149.43,8.64707811]
[1740796492830,0.04425936,149.47,149.44,0.05141675]
[1740796493228,3.7241,149.53,149.44,3.29167811]
[1740796493530,3.7241,149.53,149.39,3.6829]
[1740796493733,0.04450722,149.5,149.47,0.05082355]
[1740796494434,0.04450722,149.5,149.49,5.3535]
[1740796494826,214.04,149.55,149.49,3.34]
[1740796495033,214.04,149.55,149.49,3.6188]
[1740796495528,214.04,149.55,149.52,5.3521]
[1740796495926,214.0894317,149.55,149.52,8.695203]
[1740796498934,214.0894317,149.55,149.52,3.343103]
[1740796499127,214.0894317,149.55,149.52,0.05142489]
[1740796500431,219.4410317,149.55,149.52,0.05142489]
[1740796501334,214.0894317,149.55,149.52,0.05142489]
[1740796501531,5.3518,149.54,149.52,0.05142489]
[1740796501732,15.72,149.54,149.42,7.503]
[1740796501940,5.3527,149.52,149.46,5.3545]
[1740796502240,15.72,149.54,149.42,10.79467811]
[1740796502427,3.6837,149.53,149.42,10.79467811]
[1740796502832,3.6837,149.53,149.46,0.04529818]
[1740796502833,0.04739753,149.49,149.46,0.04529818]
[1740796503234,15.68,149.48,149.46,0.04529818]
[1740796503936,5.3542,149.47,149.46,0.04529818]
[1740796504545,5.355,149.45,149.39,5.357]
[1740796504838,15.68,149.48,149.38,3.5817]
[1740796504839,214.08,149.44,149.38,6.87337811]
[1740796505231,219.4356,149.44,149.38,12.23077811]
[1740796505439,214.08,149.44,149.38,3.29167811]
[1740796505639,0.04593983,149.42,149.4,0.02718094]
[1740796505939,5.3564,149.41,149.34,3.5817]
[1740796506135,214.08,149.44,149.34,3.5817]
[1740796506335,0.04994784,149.42,149.4,0.02718094]
[1740796507838,0.04994784,149.42,149.41,5.3564]
[1740796508038,214.08,149.44,149.4,0.02718094]
[1740796508544,214.08,149.44,149.4,3.31885905]
[1740796508735,214.08,149.44,149.4,0.02718094]
[1740796509136,5.3564,149.41,149.4,0.02718094]
[1740796509653,15.6,149.42,149.34,3.5817]
[1740796510242,15.6,149.42,149.34,6.87337811]
[1740796510743,0.05005757,149.39,149.37,0.04337745]
[1740796510940,5.3576,149.38,149.37,0.04337745]
[1740796511133,0.05005757,149.39,149.37,0.04337745]
[1740796511335,214.08,149.44,149.37,0.04337745]
[1740796511734,214.08,149.44,149.37,3.33505556]
[1740796511947,214.08,149.44,149.37,0.04337745]
[1740796512339,5.3566,149.41,149.37,3.33505556]
[1740796512545,0.04750826,149.42,149.37,0.04337745]
[1740796512846,0.04750826,149.42,149.4,5.3567]
[1740796513042,0.04750826,149.42,149.37,0.04337745]
[1740796513448,0.04750826,149.42,149.41,5.3564]
[1740796514148,0.04750826,149.42,149.4,0.04247164]
[1740796514348,0.04750826,149.42,149.4,3.33414975]
[1740796514738,0.04750826,149.42,149.4,0.04247164]
[1740796515752,0.04750826,149.42,149.41,5.3564]
[1740796516947,0.04750826,149.42,149.41,8.64807811]
[1740796518755,0.04750826,149.42,149.41,5.3564]
[1740796519052,214.08,149.44,149.43,5.3557]
[1740796519651,200.2924,149.44,149.43,5.3557]
[1740796519851,3.7138,149.53,149.43,3.34]
[1740796520054,0.05027167,149.45,149.43,3.29167811]
[1740796520356,3.7138,149.54,149.47,0.05114905]
[1740796520546,9.0658,149.54,149.41,7.2798]
[1740796520746,3.7138,149.54,149.49,0.05022136]
[1740796520942,23.8038,149.54,149.41,10.57147811]
[1740796521158,0.0496547,149.49,149.41,10.57147811]
[1740796521455,0.0496547,149.49,149.46,0.04399545]
[1740796522449,0.0496547,149.49,149.48,5.3539]
[1740796522649,0.0496547,149.49,149.46,3.33567356]
[1740796523154,0.0496547,149.49,149.46,0.04399545]
[1740796524050,5.3539,149.48,149.46,0.04399545]
[1740796524255,3.4899,149.48,149.46,0.04399545]
[1740796525358,3.4899,149.48,149.37,10.664]
[1740796525554,3.4899,149.48,149.37,13.95567811]
[1740796526454,0.04333911,149.44,149.41,0.04962501]
[1740796526956,0.04333911,149.44,149.41,3.34130312]
[1740796527159,0.04333911,149.44,149.41,0.04962501]
[1740796527752,5.356,149.42,149.41,0.04962501]
[1740796527958,15.26,149.43,149.33,3.5039]
[1740796528157,15.26,149.43,149.33,6.79557811]
[1740796528856,35.35,149.43,149.33,3.29167811]
[1740796529162,0.04830432,149.39,149.37,0.04922566]
[1740796529362,5.3575,149.38,149.37,0.04922566]
[1740796529859,0.04830432,149.39,149.3,7.4755]
[1740796530161,5.3588,149.35,149.3,16.12747811]
[1740796530459,5.3596,149.33,149.3,3.29167811]
[1740796530850,0.04371087,149.33,149.24,3.5002]
[1740796531056,0.04371087,149.33,149.24,6.79187811]
[1740796531260,5.40380753,149.3,149.24,6.79187811]
[1740796531466,0.04340753,149.3,149.24,3.29167811]
[1740796531757,5.3615,149.27,149.24,3.29167811]
[1740796531962,15.2,149.28,149.17,35.33916303]
[1740796532159,15.2,149.28,149.17,38.63084114]
[1740796532361,0.04536656,149.26,149.17,23.41084114]
[1740796532552,15.2,149.28,149.17,23.41084114]
[1740796532960,0.04379321,149.24,149.17,23.41084114]
[1740796533160,0.04379321,149.24,149.17,20.11916303]
[1740796533366,0.04379321,149.24,149.19,5.3642]
[1740796533558,0.04379321,149.24,149.17,20.11916303]
[1740796533760,214.34379321,149.24,149.17,23.41084114]
[1740796534255,214.34379321,149.24,149.17,10.8658]
[1740796535261,214.34379321,149.24,149.21,5.3633]
[1740796535967,214.34379321,149.24,149.17,10.8658]
[1740796536170,214.34379321,149.24,149.18,15.14]
[1740796536563,0.04379321,149.24,149.23,5.3628]
[1740796536865,214.34,149.31,149.18,15.14]
[1740796537069,214.34,149.31,149.29,5.3604]
[1740796537368,214.34,149.31,149.18,15.14]
[1740796537568,214.34,149.31,149.19,1.23113622]
[1740796537763,214.34,149.31,149.3,5.3603]
[1740796537965,0.05110027,149.26,149.24,0.04600487]
[1740796538163,214.34,149.31,149.2,1.23138173]
[1740796538363,214.34,149.31,149.27,5.3611]
[1740796538766,214.34,149.31,149.27,8.65277811]
[1740796539170,214.34,149.31,149.25,5.362]
[1740796539467,214.34,149.31,149.28,0.04654491]
[1740796539468,5.3607,149.29,149.28,0.04654491]
[1740796539659,5.3607,149.29,149.18,18.43167811]
[1740796539863,0.04327551,149.25,149.22,0.04271663]
[1740796540265,0.04327551,149.25,149.22,3.33439474]
[1740796540467,0.04327551,149.25,149.23,5.3628]
[1740796540673,0.04327551,149.25,149.22,3.33439474]
[1740796541470,0.04327551,149.25,149.22,0.04271663]
[1740796541671,0.04327551,149.25,149.22,3.33439474]
[1740796541967,0.04327551,149.25,149.22,0.04271663]
[1740796542171,15.08327551,149.25,149.22,0.04271663]
[1740796542670,5.3627,149.24,149.22,0.04271663]
[1740796543268,0.04327551,149.25,149.22,0.04271663]
[1740796545076,214.34,149.31,149.22,0.04271663]
[1740796545268,214.34,149.31,149.19,3.4612]
[1740796545871,219.7003,149.31,149.27,5.3612]
[1740796546070,214.34,149.31,149.19,3.4612]
[1740796546272,0.04320064,149.3,149.28,0.04302841]
[1740796546570,214.34,149.31,149.19,6.75287811]
[1740796546768,3.78522959,149.3,149.28,5.71e-05]
[1740796546968,3.7419,149.3,149.19,3.4612]
[1740796547174,5.3607,149.29,149.19,3.4612]
[1740796547376,3.7419,149.3,149.19,3.4612]
[1740796547961,214.34,149.31,149.23,0.04798158]
[1740796548166,5.3586,149.35,149.3,5.3601]
[1740796548364,229.62,149.38,149.23,15.24798158]
[1740796548568,229.62,149.38,149.23,15.2]
[1740796548972,5.359,149.34,149.29,5.3606]
[1740796549277,0.04574221,149.32,149.29,0.04811209]
[1740796549469,0.04574221,149.32,149.29,3.33975427]
[1740796549669,229.62,149.38,149.21,210.8376]
[1740796549870,0.04818627,149.32,149.29,0.04855568]
[1740796550173,15.16,149.32,149.21,3.6776]
[1740796550375,7.3686,149.31,149.21,3.29164218]
[1740796550576,5.3627,149.24,149.21,3.29164218]
[1740796550976,214.42,149.27,149.21,3.29164218]
[1740796551183,0.04317359,149.24,149.21,0.04550979]
[1740796552375,0.04317359,149.24,149.21,3.33715197]
[1740796552769,5.3632,149.22,149.21,0.04550979]
[1740796552971,0.04317359,149.24,149.21,0.04550979]
[1740796555781,5.3632,149.22,149.21,0.04550979]
[1740796556284,7.4764,149.23,149.21,0.04550979]
[1740796556987,3.697,149.23,149.21,0.04550979]
[1740796557181,0.04317359,149.24,149.21,0.04550979]
[1740796557383,5.3631,149.23,149.21,0.04550979]
[1740796557585,0.04317359,149.24,149.21,0.04550979]
[1740796558088,5.3632,149.22,149.21,0.04550979]
[1740796560884,0.04317359,149.24,149.11,7.2535]
[1740796561085,18.761,149.26,149.11,10.54514218]
[1740796561288,3.4505,149.25,149.14,5.3658]
[1740796561491,3.4505,149.25,149.11,10.54514218]
[1740796561893,0.04976274,149.19,149.17,0.04817517]
[1740796562201,14.84,149.2,149.06,14.84]
[1740796562392,5.366,149.15,149.1,5.3674]
[1740796562896,5.366,149.15,149.1,8.65904218]
[1740796563195,5.3658,149.15,149.1,8.65904218]
[1740796563397,0.04958384,149.14,149.1,3.29164218]
[1740796563894,0.04958384,149.14,149.1,8.65904218]
[1740796564095,0.04958384,149.14,149.1,3.29164218]
[1740796564396,0.04958384,149.14,149.06,14.8]
[1740796564695,0.04958384,149.14,149.06,18.09164218]
[1740796565691,0.04958384,149.14,149.06,3.29164218]
[1740796566091,5.3667,149.13,149.06,3.29164218]
[1740796566297,3.5891,149.16,149.06,3.29164218]
[1740796566487,0.04699298,149.11,149.07,5.3685]
[1740796566994,0.04699298,149.11,149.07,8.66014218]
[1740796570299,0.04699298,149.11,149.08,5.368]
[1740796570800,0.04699298,149.11,149.08,8.65964218]
[1740796571800,0.04699298,149.11,149.08,3.29164218]
[1740796571989,0.04699298,149.11,149.02,10.6581]
[1740796572191,14.6,149.14,149.02,13.94974218]
[1740796572394,0.04524502,149.08,149.02,13.94974218]
[1740796572792,0.04524502,149.08,149.03,5.3699]
[1740796573096,5.41354502,149.08,149.03,5.3699]
[1740796573399,5.41354502,149.08,149.03,8.66154218]
[1740796573701,0.04524502,149.08,149.03,3.29164218]
[1740796574101,5.3689,149.07,149.03,3.29164218]
[1740796574904,0.04524502,149.08,149.03,3.29164218]
[1740796575103,214.64,149.07,149.03,3.29164218]
[1740796575308,5.3696,149.05,148.96,3.6969]
[1740796575600,5.3696,149.05,148.96,6.98854218]
[1740796575806,0.04636876,149.02,148.96,6.98854218]
[1740796575999,0.04636876,149.02,148.96,3.6969]
[1740796576395,0.04636876,149.02,148.96,6.98854218]
[1740796576600,0.04636876,149.02,149.0,5.3709]
[1740796576791,0.04636876,149.02,148.96,6.98854218]
[1740796578196,0.04636876,149.02,149.01,5.3708]
[1740796578405,214.64,149.07,148.96,3.6969]
[1740796578707,214.64,149.07,148.97,1.23336765]
[1740796579297,3.7097,149.13,148.97,1.23336765]
[1740796579499,214.68,149.14,149.08,5.3682]
[1740796579699,8.472e-05,149.06,149.04,0.04498089]
[1740796579900,214.68,149.14,149.04,10.9836]
[1740796580106,5.3665,149.13,149.04,14.22887342]
[1740796580305,214.68,149.14,149.04,14.22887342]